fUSD/lending_fUSD_20240421
["ID","MTS","AMOUNT","RATE_DAILY","PERIOD"]
[323108336,1713670233522,-502.56285317,0.00016438,2]
[323108337,1713670233532,-502.72979881,0.00016438,2]
[323108338,1713670233543,-500.0,0.00016438,2]
[323108339,1713670233554,-500.0,0.00016438,2]
[323108340,1713670233564,-500.0,0.00016438,2]
[323108341,1713670233576,-513.4889654,0.00016438,2]
[323108342,1713670233586,-500.0,0.00016438,2]
[323108343,1713670233595,-505.85109684,0.00016438,2]
[323108344,1713670233606,-500.0,0.00016438,2]
[323108345,1713670233616,-500.0,0.00016438,2]
[323108346,1713670233625,-500.0,0.00016438,2]
[323108347,1713670233635,-500.0,0.00016438,2]
[323108348,1713670233645,-500.0,0.00016438,2]
[323108349,1713670233655,-500.0,0.00016438,2]
[323108350,1713670233666,-500.0,0.00016438,2]
[323108351,1713670233678,-500.0,0.00016438,2]
[323108352,1713670233687,-1000.0,0.00016438,2]
[323108353,1713670233696,-1000.0,0.00016438,2]
[323108354,1713670233706,-1000.0,0.00016438,2]
[323108355,1713670233716,-1000.0,0.00016438,2]
[323108356,1713670233725,-1000.0,0.00016438,2]
[323108357,1713670233735,-1000.0,0.00016438,2]
[323108358,1713670233744,-1000.0,0.00016438,2]
[323108359,1713670233754,-1000.0,0.00016438,2]
[323108360,1713670233764,-1000.0,0.00016438,2]
[323108361,1713670233774,-1000.0,0.00016438,2]
[323108362,1713670233784,-1000.0,0.00016438,2]
[323108363,1713670233793,-793.1113255,0.00016438,2]
[323108364,1713670233806,-206.8886745,0.00016438,2]
[323108365,1713670233816,-1000.0,0.00016438,2]
[323108366,1713670233825,-1000.0,0.00016438,2]
[323108367,1713670233835,-382.86982128,0.00016438,2]
[323108368,1713670233854,-617.13017872,0.00016438,2]
[323108369,1713670233864,-1000.0,0.00016438,2]
[323108370,1713670233874,-1000.0,0.00016438,2]
[323108371,1713670233884,-1000.0,0.00016438,2]
[323108372,1713670233894,-1000.0,0.00016438,2]
[323108373,1713670233903,-1000.0,0.00016438,2]
[323108374,1713670233915,-954.51173536,0.00016438,2]
[323108386,1713670238320,-45.48826464,0.00016438,2]
[323108387,1713670238331,-467.6893078,0.00016438,2]
[323108388,1713670238376,-532.3106922,0.00016438,2]
[323108389,1713670238387,-1000.0,0.00016438,2]
[323108390,1713670238400,-821.0,0.00016438,2]
[323108391,1713670238413,-3121.0,0.000166,2]
[323108392,1713670238423,-1000.0,0.00016612,2]
[323108393,1713670238433,-500.0,0.0001671,2]
[323108394,1713670238444,-500.0,0.0001671,2]
[323108395,1713670238457,-500.0,0.0001671,2]
[323108396,1713670238468,-500.0,0.0001671,2]
[323108397,1713670238478,-500.0,0.0001671,2]
[323108398,1713670238489,-500.0,0.0001671,2]
[323108399,1713670238499,-500.0,0.0001671,2]
[323108400,1713670238513,-500.0,0.0001671,2]
[323108401,1713670238523,-500.0,0.0001671,2]
[323108402,1713670238533,-1127.77,0.0001671,2]
[323108403,1713670238546,-1041.93,0.0001671,2]
[323108404,1713670238557,-786.19,0.0001671,2]
[323108405,1713670238568,-1958.0,0.0001671,2]
[323108406,1713670238578,-500.0,0.0001671,2]
[323108407,1713670238590,-500.0,0.0001671,2]
[323108408,1713670238601,-500.0,0.0001671,2]
[323108409,1713670238613,-500.0,0.0001671,2]
[323108410,1713670238624,-500.0,0.0001671,2]
[323108411,1713670238635,-1806.43,0.0001671,2]
[323108412,1713670238646,-500.0,0.0001671,2]
[323108413,1713670238658,-500.0,0.0001671,2]
[323108414,1713670238672,-500.0,0.0001671,2]
[323108415,1713670238682,-500.0,0.0001671,2]
[323108416,1713670238693,-500.0,0.0001671,2]
[323108417,1713670238704,-500.0,0.0001671,2]
[323108418,1713670238714,-834.31,0.0001671,2]
[323108419,1713670238723,-500.0,0.0001671,2]
[323108420,1713670238733,-4.59123153,0.0001671,2]
[323108421,1713670238747,-495.40876847,0.0001671,2]
[323108422,1713670238757,-500.0,0.0001671,2]
[323108423,1713670238767,-500.0,0.0001671,2]
[323108425,1713670238778,-52.99169465,0.0001671,2]
[323108430,1713670238820,-447.00830535,0.0001671,2]
[323108432,1713670238830,-354.30437905,0.0001671,2]
[323108441,1713670238905,-145.69562095,0.0001671,2]
[323108443,1713670238917,-500.0,0.0001671,2]
[323108445,1713670238928,-500.0,0.0001671,2]
[323108448,1713670238940,-200.48718927,0.0001671,2]
[323108450,1713670238950,-500.0,0.0001671,2]
[323108452,1713670238960,-500.0,0.0001671,2]
[323108454,1713670238970,-500.0,0.0001671,2]
[323108456,1713670238981,-179.30487708,0.0001671,2]
[323108459,1713670238993,-320.69512292,0.0001671,2]
[323108461,1713670239003,-500.0,0.0001671,2]
[323108463,1713670239013,-211.23516713,0.0001671,2]
[323108470,1713670239067,-263.8723281,0.0001671,2]
[323108472,1713670239077,-226.3010395,0.0001671,2]
[323108824,1713670242127,-5.45445011,0.0001671,2]
[323108826,1713670242137,-500.0,0.0001671,2]
[323108828,1713670242148,-150.59554989,0.0001671,2]
[323108832,1713670242177,-349.40445011,0.0001671,2]
[323108834,1713670242187,-1630.7,0.0001671,2]
[323108836,1713670242197,-500.0,0.0001671,2]
[323108838,1713670242207,-616.0846765,0.0001671,2]
[323108840,1713670242301,-1663.1853235,0.0001671,2]
[323108841,1713670242311,-500.0,0.0001671,2]
[323108842,1713670242321,-1356.27,0.0001671,2]
[323108843,1713670242331,-500.0,0.0001671,2]
[323108844,1713670242341,-500.0,0.0001671,2]
[323108845,1713670242351,-500.0,0.0001671,2]
[323108846,1713670242361,-324.94760573,0.0001671,2]
[323108847,1713670242371,-500.0,0.0001671,2]
[323108848,1713670242381,-500.0,0.0001671,2]
[323108849,1713670242391,-500.0,0.0001671,2]
[323108850,1713670242400,-500.0,0.0001671,2]
[323108851,1713670242410,-500.0,0.0001671,2]
[323108852,1713670242426,-500.0,0.0001671,2]
[323108853,1713670242436,-500.0,0.0001671,2]
[323108854,1713670242446,-500.0,0.0001671,2]
[323108855,1713670242456,-500.0,0.0001671,2]
[323108856,1713670242465,-500.0,0.0001671,2]
[323108857,1713670242475,-507.9565079,0.0001671,2]
[323108858,1713670242485,-500.0,0.0001671,2]
[323108859,1713670242496,-576.36,0.0001671,2]
[323108860,1713670242508,-500.0,0.0001671,2]
[323108861,1713670242518,-500.0,0.0001671,2]
[323108862,1713670242528,-501.84467425,0.00016711,2]
[323108863,1713670242538,-500.0,0.00016711,2]
[323108864,1713670242549,-500.0,0.00016711,2]
[323108865,1713670242559,-458.49038971,0.00016711,2]
[323108866,1713670242569,-504.54512049,0.00016711,2]
[323108867,1713670242579,-515.41645761,0.00016711,2]
[323108868,1713670242589,-500.58879297,0.00016711,2]
[323108869,1713670242600,-497.28839616,0.00016711,2]
[323108870,1713670242610,-616.26655147,0.00016711,2]
[323108871,1713670242619,-500.0,0.00016711,2]
[323108872,1713670242630,-501.41677553,0.00016711,2]
[323108873,1713670242641,-500.0,0.00016711,2]
[323108874,1713670242651,-230.66042649,0.00016711,2]
[323108875,1713670242663,-307.76365238,0.00016711,2]
[323108876,1713670242674,-500.0,0.00016711,2]
[323108877,1713670242684,-500.0,0.00016711,2]
[323108878,1713670242694,-500.97258149,0.00016711,2]
[323108879,1713670242704,-500.0,0.00016711,2]
[323108880,1713670242714,-500.0,0.00016711,2]
[323108881,1713670242725,-500.0,0.00016711,2]
[323108882,1713670242735,-500.0,0.00016711,2]
[323108883,1713670242745,-500.0,0.00016711,2]
[323108888,1713670242756,-500.0,0.00016711,2]
[323108889,1713670243058,-500.5793039,0.00016711,2]
[323108892,1713670243075,-500.0,0.00016711,2]
[323108894,1713670243084,-500.0,0.00016711,2]
[323108896,1713670243094,-500.0,0.00016711,2]
[323108898,1713670243103,-500.0,0.00016711,2]
[323108900,1713670243112,-500.0,0.00016711,2]
[323108903,1713670243122,-500.0,0.00016711,2]
[323108905,1713670243131,-500.0,0.00016711,2]
[323108906,1713670243141,-500.0,0.00016711,2]
[323108908,1713670243150,-500.0,0.00016711,2]
[323108909,1713670243160,-387.91155433,0.00016711,2]
[323108910,1713670243176,-500.0,0.00016711,2]
[323108912,1713670243185,-500.0,0.00016711,2]
[323108914,1713670243195,-616.44,0.00016711,2]
[323108916,1713670243204,-500.0,0.00016711,2]
[323108918,1713670243214,-500.0,0.00016711,2]
[323108919,1713670243223,-500.0,0.00016711,2]
[323108921,1713670243232,-500.0,0.00016711,2]
[323108922,1713670243241,-500.0,0.00016711,2]
[323108923,1713670243250,-500.0,0.00016711,2]
[323108924,1713670243260,-500.0,0.00016711,2]
[323108925,1713670243271,-500.0,0.00016711,2]
[323108926,1713670243281,-500.0,0.00016711,2]
[323108927,1713670243290,-500.0,0.00016711,2]
[323108928,1713670243300,-500.0,0.00016711,2]
[323108929,1713670243310,-500.0,0.00016711,2]
[323108930,1713670243319,-500.0,0.00016711,2]
[323108931,1713670243329,-500.0,0.00016711,2]
[323108932,1713670243338,-497.68375841,0.00016711,2]
[323108933,1713670243347,-500.0,0.00016711,2]
[323108935,1713670243356,-500.0,0.00016711,2]
[323108937,1713670243365,-500.0,0.00016711,2]
[323108939,1713670243376,-500.0,0.00016711,2]
[323108941,1713670243385,-500.0,0.00016711,2]
[323108942,1713670243394,-500.0,0.00016711,2]
[323108943,1713670243403,-500.0,0.00016711,2]
[323108944,1713670243418,-500.0,0.00016711,2]
[323108945,1713670243427,-500.0,0.00016711,2]
[323108946,1713670243437,-500.0,0.00016711,2]
[323108947,1713670243446,-500.0,0.00016711,2]
[323108948,1713670243456,-500.0,0.00016711,2]
[323108949,1713670243465,-639.32,0.00016711,2]
[323108950,1713670243474,-500.0,0.00016711,2]
[323108951,1713670243483,-1142.59,0.00016711,2]
[323108952,1713670243492,-500.0,0.00016711,2]
[323108953,1713670243502,-500.0,0.00016711,2]
[323108954,1713670243515,-1722.38,0.00016711,2]
[323108955,1713670243524,-426.90063083,0.00016711,2]
[323108956,1713670243533,-677.05,0.00016711,2]
[323108957,1713670243545,-500.0,0.00016711,2]
[323108958,1713670243553,-500.0,0.00016711,2]
[323108959,1713670243563,-500.0,0.00016711,2]
[323108960,1713670243572,-500.0,0.00016711,2]
[323108961,1713670243581,-500.0,0.00016711,2]
[323108962,1713670243591,-500.0,0.00016711,2]
[323108963,1713670243601,-500.0,0.00016711,2]
[323108964,1713670243610,-500.0,0.00016711,2]
[323108965,1713670243619,-322.41024399,0.00016711,2]
[323108966,1713670243628,-500.0,0.00016711,2]
[323108967,1713670243637,-500.0,0.00016711,2]
[323108968,1713670243646,-500.0,0.00016711,2]
[323108969,1713670243656,-648.00468923,0.00016711,2]
[323108970,1713670243670,-500.0,0.00016711,2]
[323108971,1713670243680,-516.46284405,0.00016711,2]
[323108972,1713670243690,-500.0,0.00016711,2]
[323108973,1713670243699,-501.24630836,0.00016711,2]
[323108974,1713670243708,-517.18250825,0.00016711,2]
[323108975,1713670243717,-500.0,0.00016711,2]
[323108976,1713670243726,-503.96683272,0.00016711,2]
[323108977,1713670243735,-501.70034682,0.00016711,2]
[323108978,1713670243745,-501.57153516,0.00016711,2]
[323108979,1713670243755,-501.24891568,0.00016712,2]
[323108980,1713670243764,-500.0,0.00016712,2]
[323108981,1713670243773,-501.47756028,0.00016712,2]
[323108982,1713670243783,-500.0,0.00016712,2]
[323108983,1713670243792,-501.52172921,0.00016712,2]
[323108984,1713670243801,-500.94574016,0.00016712,2]
[323108985,1713670243810,-226.25750131,0.00016712,2]
[323108986,1713670243820,-500.0,0.00016712,2]
[323108987,1713670243829,-500.0,0.00016712,2]
[323108988,1713670243839,-500.0,0.00016712,2]
[323108989,1713670243848,-500.0,0.00016712,2]
[323108990,1713670243857,-310.82488032,0.00016712,2]
[323108992,1713670243866,-585.5,0.00016712,2]
[323108993,1713670243875,-500.0,0.00016712,2]
[323108994,1713670243884,-500.0,0.00016712,2]
[323108995,1713670243894,-450.63305783,0.00016712,2]
[323108996,1713670243903,-236.28,0.00016712,2]
[323108997,1713670243913,-500.0,0.00016712,2]
[323108998,1713670243923,-616.01723931,0.00016712,2]
[323108999,1713670243933,-500.0,0.00016712,2]
[323109000,1713670243943,-162.41,0.00016712,2]
[323109001,1713670243952,-539.97792664,0.00016712,2]
[323109002,1713670243961,-500.0,0.00016712,2]
[323109003,1713670243970,-500.0,0.00016712,2]
[323109004,1713670243979,-500.0,0.00016712,2]
[323109005,1713670243988,-500.0,0.00016712,2]
[323109006,1713670243997,-277.73375645,0.00016712,2]
[323109007,1713670244007,-500.0,0.00016712,2]
[323109008,1713670244016,-500.0,0.00016712,2]
[323109009,1713670244025,-500.0,0.00016712,2]
[323109010,1713670244035,-500.0,0.00016712,2]
[323109011,1713670244044,-569.6133541,0.00016712,2]
[323109012,1713670244053,-203.61614665,0.00016712,2]
[323109013,1713670244062,-500.0,0.00016712,2]
[323109014,1713670244071,-500.0,0.00016712,2]
[323109015,1713670244080,-500.0,0.00016712,2]
[323109016,1713670244089,-286.49441754,0.00016712,2]
[323109017,1713670244101,-500.0,0.00016712,2]
[323109018,1713670244110,-500.0,0.00016712,2]
[323109019,1713670244119,-500.0,0.00016712,2]
[323109020,1713670244128,-500.0,0.00016712,2]
[323109021,1713670244137,-500.0,0.00016712,2]
[323109022,1713670244146,-500.0,0.00016712,2]
[323109023,1713670244155,-294.51961386,0.00016885,2]
[323109024,1713670244167,-412.62929491,0.00016984,2]
[323109025,1713670244177,-500.0,0.00016984,2]
[323109026,1713670244186,-500.0,0.00016984,2]
[323109027,1713670244196,-500.0,0.00016984,2]
[323109028,1713670244205,-1127.77,0.00016984,2]
[323109029,1713670244214,-1041.93,0.00016984,2]
[323109030,1713670244223,-786.19,0.00016984,2]
[323109031,1713670244231,-1958.0,0.00016984,2]
[323109032,1713670244240,-500.0,0.00016984,2]
[323109033,1713670244249,-500.0,0.00016984,2]
[323109034,1713670244258,-500.0,0.00016984,2]
[323109035,1713670244267,-500.0,0.00016984,2]
[323109036,1713670244276,-1806.43,0.00016984,2]
[323109037,1713670244290,-500.0,0.00016984,2]
[323109038,1713670244300,-500.0,0.00016984,2]
[323109039,1713670244309,-500.0,0.00016984,2]
[323109040,1713670244318,-367.31624883,0.00016984,2]
[323109041,1713670244327,-834.31,0.00016984,2]
[323109042,1713670244337,-500.0,0.00016984,2]
[323109043,1713670244346,-500.0,0.00016984,2]
[323109044,1713670244355,-500.0,0.00016984,2]
[323109045,1713670244364,-500.0,0.00016984,2]
[323109046,1713670244373,-500.0,0.00016984,2]
[323109047,1713670244383,-500.0,0.00016984,2]
[323109048,1713670244396,-397.3546051,0.00016984,2]
[323109049,1713670244419,-500.0,0.00016984,2]
[323109050,1713670244431,-500.0,0.00016984,2]
[323109051,1713670244441,-1630.7,0.00016984,2]
[323109052,1713670244451,-2279.27,0.00016984,2]
[323109053,1713670244460,-500.0,0.00016984,2]
[323109054,1713670244470,-1356.27,0.00016984,2]
[323109055,1713670244479,-500.0,0.00016984,2]
[323109056,1713670244488,-500.0,0.00016984,2]
[323109057,1713670244498,-500.0,0.00016984,2]
[323109058,1713670244510,-500.0,0.00016984,2]
[323109059,1713670244519,-500.0,0.00016984,2]
[323109060,1713670244529,-500.0,0.00016984,2]
[323109061,1713670244539,-576.36,0.00016984,2]
[323109062,1713670244548,-500.0,0.00016984,2]
[323109063,1713670244557,-500.79304351,0.00016985,2]
[323109064,1713670244566,-500.0,0.00016985,2]
[323109065,1713670244575,-469.17819874,0.00016985,2]
[323109066,1713670244585,-502.20432376,0.00016985,2]
[323109067,1713670244594,-505.25063637,0.00016985,2]
[323109068,1713670244605,-500.0,0.00016985,2]
[323109069,1713670244614,-500.0,0.00016985,2]
[323109070,1713670244623,-648.61333049,0.00016985,2]
[323109071,1713670244632,-500.0,0.00016985,2]
[323109072,1713670244641,-503.49006842,0.00016985,2]
[323109073,1713670244650,-500.0,0.00016985,2]
[323109074,1713670244659,-503.01747096,0.00016985,2]
[323109075,1713670244670,-500.0,0.00016985,2]
[323109076,1713670244679,-500.0,0.00016985,2]
[323109077,1713670244688,-500.0,0.00016985,2]
[323109078,1713670244697,-500.0,0.00016985,2]
[323109079,1713670244705,-500.0,0.00016985,2]
[323109080,1713670244714,-503.79723479,0.00016985,2]
[323109081,1713670244724,-500.0,0.00016985,2]
[323109082,1713670244734,-500.0,0.00016985,2]
[323109083,1713670244744,-500.0,0.00016985,2]
[323109084,1713670244754,-500.0,0.00016985,2]
[323109085,1713670244763,-500.0,0.00016985,2]
[323109086,1713670244772,-500.0,0.00016985,2]
[323109087,1713670244781,-500.0,0.00016985,2]
[323109088,1713670244791,-518.98129536,0.00016985,2]
[323109089,1713670244799,-500.0,0.00016985,2]
[323109090,1713670244809,-500.0,0.00016985,2]
[323109091,1713670244819,-500.0,0.00016985,2]
[323109092,1713670244828,-500.0,0.00016985,2]
[323109093,1713670244837,-500.0,0.00016985,2]
[323109094,1713670244846,-504.36578971,0.00016985,2]
[323109095,1713670244856,-508.51562147,0.00016985,2]
[323109096,1713670244865,-500.0,0.00016985,2]
[323109097,1713670244874,-500.71410171,0.00016985,2]
[323109098,1713670244883,-502.19260669,0.00016985,2]
[323109099,1713670244892,-500.0,0.00016985,2]
[323109100,1713670244901,-500.0,0.00016985,2]
[323109101,1713670244909,-500.0,0.00016985,2]
[323109102,1713670244922,-500.0,0.00016985,2]
[323109103,1713670244931,-500.0,0.00016985,2]
[323109104,1713670244940,-501.85242607,0.00016985,2]
[323109105,1713670244949,-500.0,0.00016985,2]
[323109106,1713670244959,-504.48129969,0.00016985,2]
[323109107,1713670244968,-500.0,0.00016985,2]
[323109108,1713670244978,-503.04701793,0.00016985,2]
[323109109,1713670244987,-500.0,0.00016985,2]
[323109110,1713670244996,-500.0,0.00016985,2]
[323109111,1713670245005,-500.0,0.00016985,2]
[323109112,1713670245014,-500.0,0.00016985,2]
[323109113,1713670245023,-500.0,0.00016985,2]
[323109114,1713670245032,-503.79770738,0.00016985,2]
[323109115,1713670245041,-500.0,0.00016985,2]
[323109116,1713670245050,-500.0,0.00016985,2]
[323109117,1713670245059,-500.0,0.00016985,2]
[323109118,1713670245069,-500.0,0.00016985,2]
[323109119,1713670245078,-500.0,0.00016985,2]
[323109120,1713670245088,-500.0,0.00016985,2]
[323109121,1713670245097,-502.18010984,0.00016985,2]
[323109122,1713670245106,-500.73654211,0.00016985,2]
[323109123,1713670245115,-343.18332461,0.00016985,2]
[323109124,1713670245124,-500.0,0.00016985,2]
[323109125,1713670245133,-500.0,0.00016985,2]
[323109126,1713670245143,-500.0,0.00016985,2]
[323109127,1713670245152,-542.9,0.00016985,2]
[323109128,1713670245160,-624.23011509,0.00016985,2]
[323109129,1713670245172,-501.19848348,0.00016985,2]
[323109130,1713670245181,-501.09573721,0.00016985,2]
[323109131,1713670245190,-503.42029911,0.00016985,2]
[323109132,1713670245200,-502.10942075,0.00016985,2]
[323109133,1713670245209,-588.23,0.00016985,2]
[323109134,1713670245218,-500.0,0.00016985,2]
[323109135,1713670245227,-500.0,0.00016985,2]
[323109136,1713670245236,-500.0,0.00016985,2]
[323109137,1713670245245,-500.0,0.00016985,2]
[323109138,1713670245254,-518.247963,0.00016985,2]
[323109139,1713670245263,-500.0,0.00016985,2]
[323109140,1713670245273,-500.0,0.00016985,2]
[323109141,1713670245282,-500.0,0.00016985,2]
[323109142,1713670245291,-500.90659868,0.00016985,2]
[323109143,1713670245300,-501.33323838,0.00016985,2]
[323109144,1713670245309,-503.51455305,0.00016985,2]
[323109145,1713670245318,-504.81438558,0.00016985,2]
[323109146,1713670245328,-500.0,0.00016985,2]
[323109147,1713670245337,-504.18260585,0.00016985,2]
[323109148,1713670245347,-501.97846754,0.00016985,2]
[323109149,1713670245357,-502.01227593,0.00016985,2]
[323109150,1713670245367,-503.18019239,0.00016985,2]
[323109151,1713670245376,-500.0,0.00016985,2]
[323109152,1713670245385,-500.0,0.00016985,2]
[323109153,1713670245394,-500.0,0.00016985,2]
[323109154,1713670245403,-500.0,0.00016985,2]
[323109155,1713670245413,-291.52338098,0.00016985,2]
[323109156,1713670245426,-504.0578571,0.00016985,2]
[323109157,1713670245435,-500.0,0.00016985,2]
[323109158,1713670245444,-355.62420893,0.00016985,2]
[323109159,1713670245453,-500.0,0.00016985,2]
[323109160,1713670245462,-500.0,0.00016985,2]
[323109161,1713670245471,-500.0,0.00016985,2]
[323109162,1713670245480,-505.46642908,0.00016985,2]
[323109163,1713670245489,-644.59477982,0.00016985,2]
[323109164,1713670245499,-514.22887567,0.00016985,2]
[323109165,1713670245513,-500.0,0.00016985,2]
[323109166,1713670245522,-504.83534749,0.00016985,2]
[323109167,1713670245532,-500.0,0.00016985,2]
[323109168,1713670245543,-501.86794072,0.00016985,2]
[323109169,1713670245552,-500.0,0.00016985,2]
[323109170,1713670245562,-500.0,0.00016985,2]
[323109171,1713670245571,-500.0,0.00016985,2]
[323109172,1713670245581,-500.0,0.00016985,2]
[323109173,1713670245590,-500.0,0.00016985,2]
[323109174,1713670245600,-500.0,0.00016985,2]
[323109175,1713670245609,-500.0,0.00016985,2]
[323109176,1713670245617,-503.14778219,0.00016985,2]
[323109177,1713670245626,-500.0,0.00016985,2]
[323109178,1713670245635,-500.0,0.00016985,2]
[323109179,1713670245644,-500.0,0.00016985,2]
[323109180,1713670245653,-500.0,0.00016985,2]
[323109181,1713670245664,-500.0,0.00016985,2]
[323109182,1713670245673,-503.44429813,0.00016985,2]
[323109183,1713670245683,-628.67364193,0.00016985,2]
[323109184,1713670245692,-500.0,0.00016985,2]
[323109185,1713670245701,-504.31666459,0.00016985,2]
[323109186,1713670245710,-500.0,0.00016985,2]
[323109187,1713670245719,-500.0,0.00016985,2]
[323109188,1713670245729,-503.31331729,0.00016985,2]
[323109189,1713670245738,-500.0,0.00016985,2]
[323109190,1713670245747,-521.91338485,0.00016985,2]
[323109191,1713670245756,-500.0,0.00016985,2]
[323109192,1713670245766,-500.0,0.00016985,2]
[323109193,1713670245775,-500.0,0.00016985,2]
[323109194,1713670245784,-500.0,0.00016985,2]
[323109195,1713670245793,-500.0,0.00016985,2]
[323109196,1713670245802,-500.0,0.00016985,2]
[323109197,1713670245812,-503.77721704,0.00016985,2]
[323109198,1713670245821,-500.0,0.00016985,2]
[323109199,1713670245830,-500.0,0.00016985,2]
[323109200,1713670245840,-500.0,0.00016985,2]
[323109201,1713670245850,-629.65808808,0.00016985,2]
[323109202,1713670245859,-500.0,0.00016985,2]
[323109203,1713670245869,-500.0,0.00016985,2]
[323109204,1713670245879,-500.72497037,0.00016985,2]
[323109205,1713670245888,-502.11843243,0.00016985,2]
[323109206,1713670245898,-185.23240176,0.00016985,2]
[323109207,1713670245907,-500.0,0.00016985,2]
[323109208,1713670245918,-502.22643711,0.00016985,2]
[323109209,1713670245927,-500.0,0.00016985,2]
[323109210,1713670245937,-500.0,0.00016985,2]
[323109211,1713670245950,-500.0,0.00016985,2]
[323109212,1713670245960,-502.4376152,0.00016985,2]
[323109213,1713670245969,-501.99192131,0.00016985,2]
[323109214,1713670245978,-486.51798853,0.00016985,2]
[323109215,1713670245988,-500.0,0.00016985,2]
[323109216,1713670245997,-501.42499492,0.00016985,2]
[323109217,1713670246009,-501.52863348,0.00016985,2]
[323109218,1713670246019,-500.0,0.00016985,2]
[323109219,1713670246029,-500.0,0.00016985,2]
[323109220,1713670246038,-616.44,0.00016985,2]
[323109221,1713670246047,-502.16162259,0.00016985,2]
[323109222,1713670246057,-500.0,0.00016985,2]
[323109223,1713670246067,-500.30584195,0.00016985,2]
[323109224,1713670246077,-500.0,0.00016985,2]
[323109225,1713670246086,-487.24,0.00016985,2]
[323109226,1713670246095,-500.0,0.00016985,2]
[323109227,1713670246105,-501.28777155,0.00016985,2]
[323109228,1713670246114,-500.0,0.00016985,2]
[323109229,1713670246123,-500.0,0.00016985,2]
[323109231,1713670246132,-500.0,0.00016985,2]
[323109233,1713670246142,-500.5446005,0.00016985,2]
[323109234,1713670246151,-500.52532348,0.00016985,2]
[323109236,1713670246160,-502.16770533,0.00016985,2]
[323109238,1713670246171,-500.0,0.00016985,2]
[323109239,1713670246180,-500.0,0.00016985,2]
[323109241,1713670246190,-500.0,0.00016985,2]
[323109243,1713670246199,-500.0,0.00016985,2]
[323109244,1713670246208,-500.0,0.00016985,2]
[323109245,1713670246218,-502.45628265,0.00016985,2]
[323109246,1713670246227,-490.58382946,0.00016985,2]
[323109247,1713670246236,-502.5317517,0.00016985,2]
[323109248,1713670246245,-500.0,0.00016985,2]
[323109249,1713670246255,-500.0,0.00016985,2]
[323109250,1713670246264,-284.06627378,0.00016985,2]
[323109251,1713670246273,-501.99459764,0.00016985,2]
[323109252,1713670246282,-500.0,0.00016985,2]
[323109253,1713670246291,-500.0,0.00016985,2]
[323109254,1713670246300,-500.44533309,0.00016985,2]
[323109255,1713670246478,-501.65040393,0.00016985,2]
[323109256,1713670246495,-500.94958197,0.00016985,2]
[323109257,1713670246505,-500.0,0.00016985,2]
[323109258,1713670246515,-500.0,0.00016985,2]
[323109259,1713670246524,-517.79042782,0.00016985,2]
[323109260,1713670246533,-639.32,0.00016985,2]
[323109261,1713670246544,-504.9478846,0.00016985,2]
[323109262,1713670246553,-1142.59,0.00016985,2]
[323109263,1713670246562,-500.0,0.00016985,2]
[323109264,1713670246572,-1722.38,0.00016985,2]
[323109265,1713670246581,-181.8274801,0.00016985,2]
[323109266,1713670246590,-500.0,0.00016985,2]
[323109267,1713670246600,-500.0,0.00016985,2]
[323109268,1713670246609,-500.80318585,0.00016985,2]
[323109269,1713670246618,-502.19901371,0.00016985,2]